Cogmind - Beta 14 @@@ ROGUE MODE // 2025.03.30 @ 18:14:46 Player: golanco Result: Destroyed by Y-45 Defender with Heavy Assault Rifle Performance ------------- Evolutions (1) 500 Regions Visited (3) 600 Robots Destroyed (37) 185 Value Destroyed (700) 700 Prototype IDs (1) 20 Alien Tech Used (0) 0 Bonus (0) 0 TOTAL SCORE: 2005 Bonus ------- None Cogmind --------- Core Integrity 0/400 Matter 77/300 Energy 100/100 System Corruption 0% Temperature Cool (9) Movement Core (1400) Ox27 Location -9/Storage Parts ------- > --- POWER (1) -------- (None) > --- PROPULSION (3) --- (None) > --- UTILITY (3) ------ Huge Storage Unit Seismic Detector Utility Shielding > --- WEAPON (2) ------- (None) > --- INVENTORY (25) --- Light Ion Engine Light Ion Engine Armored Wheel Armored Wheel VTOL Module Improved Flight Unit Transport Network Coupler ECM Suite ECM Suite Peak State ------------ > --- POWER ------------ Ion Engine > --- PROPULSION ------- Light Treads Armored Wheel Armored Wheel > --- UTILITY ---------- Huge Storage Unit > --- WEAPON ----------- Medium Laser Grenade Launcher > --- INVENTORY -------- Ion Engine Light Ion Engine Light Ion Engine Light Treads Light Treads Light Treads VTOL Module Improved Flight Unit Improved Flight Unit Seismic Detector Transport Network Coupler ECM Suite ECM Suite Utility Shielding Medium Laser [Rating: 11] Favorites ----------- Power Ion Engine Engine Ion Engine Power Core Light Nuclear Core Propulsion Light Treads Treads Light Treads Wheel Armored Wheel Flight Unit Improved Flight Unit Utility Sensor Array Device Sensor Array Storage Huge Storage Unit Protection Utility Shielding Weapon Grenade Launcher Energy Gun Medium Laser Ballistic Gun Assault Rifle Ballistic Cannon Light Cannon Launcher Grenade Launcher Build | -11 -10 -9 -9 ------- Run | Yrd Mat Mat Sto Slots Evolved 2 | . . 2 . Power . | . . . . Propulsion 1 | . . 1 . Utility 1 | . . 1 . Weapon . | . . . . Parts Attached 29 | 7 10 8 4 Power 4 | 1 2 . 1 Engine 3 | 1 1 . 1 Core 1 | . 1 . . Reactor . | . . . . Propulsion 11 | 2 3 5 1 Treads 8 | 2 1 5 . Leg . | . . . . Wheel 2 | . 2 . . Hover . | . . . . Flight 1 | . . . 1 Utility 6 | 2 2 . 2 Device 3 | 1 1 . 1 Storage 2 | 1 1 . . Processor . | . . . . Hackware . | . . . . Protection 1 | . . . 1 Artifact . | . . . . Weapon 8 | 2 3 3 . Energy Gun 4 | 1 1 2 . Energy Cannon . | . . . . Ballistic Gun 1 | 1 . . . Ballistic Cannon 1 | . 1 . . Launcher 2 | . 1 1 . Special Weapon . | . . . . Impact Weapon . | . . . . Slashing Weapon . | . . . . Piercing Weapon . | . . . . Special Melee Weapon . | . . . . Unidentified Prototypes 1 | . . . 1 Parts Lost 14 | . 2 8 4 Power 3 | . 1 1 1 Propulsion 4 | . . 2 2 Utility 1 | . . 1 . Weapon 6 | . 1 4 1 Highest Loss Streak 5 | . 1 5 4 To Critical Strikes . | . . . . Average Slot Usage (%) 82 | . 90 69 58 Engine 10 | . 11 8 6 Core 1 | . 2 . . Treads 12 | . 14 6 11 Wheel 8 | . 6 16 . Device 11 | . 14 7 11 Storage 12 | . 14 11 11 Energy Gun 4 | . 4 3 5 Ballistic Gun 2 | . 3 . . Ballistic Cannon 7 | . 7 6 . Launcher 8 | . 9 9 . Peak Build Rating 11 | 7 10 11 11 Average Rating 7 | 4 7 9 6 On Entrance 5 | . 7 10 6 Naked Turns . | . . . . Heaviest Build 92 | 15 92 92 89 Greatest Support 60 | 40 40 60 40 Greatest Overweight (x) 27 | . 7 4 27 Average Overweight (x) 2 | . 2 2 5 Largest Inventory Capacity 25 | 8 25 25 25 Average Capacity 18 | 6 16 25 25 Most Carried 16 | 3 11 16 12 Average Carried 8 | 1 7 12 9 Final Capacity 25 | 8 25 25 25 Final Carried 13 | 2 11 13 9 Class Distribution -------------------- 95% | Mutant 4% | Scavenger-Mutant Dominant Class ---------------- Mutant | -10/Materials Mutant | -9/Materials Mutant | -9/Storage Resources | -11 -10 -9 -9 ----------- Run | Yrd Mat Mat Sto Matter Collected 593 | 261 214 118 . Remotely . | . . . . Salvage Created 791 | 29 435 267 60 Parts 64 | 4 32 24 4 Haulers Intercepted 3 | . 2 1 . Recyclers Shooed . | . . . . Parts Field Recycled . | . . . . Retrieved Matter . | . . . . Parts Self-Destructed . | . . . . Prevented . | . . . . Kills | -11 -10 -9 -9 ------- Run | Yrd Mat Mat Sto Combat Hostiles Destroyed 22 | . 9 12 1 Guns 9 | . 3 5 1 Cannons 3 | . . 3 . AOE 10 | . 6 4 . Classes Destroyed 9 | 1 7 1 . Worker 5 | . 4 1 . Builder 2 | . 2 . . Tunneler 1 | 1 . . . Hauler 3 | . 2 1 . Recycler 1 | . 1 . . Watcher 3 | . 3 . . Swarmer 10 | . 3 7 . Grunt 8 | . 6 2 . Sentry 4 | . . 3 1 Best Kill Streak 10 | 1 10 6 1 Combat Bots Only 5 | . 3 5 1 Max Kills in Single Turn 3 | 1 3 2 1 Gunslinging . | . . . . Exploded 3 | . 3 1 . Melee . | . . . . Uniques/NPCs Destroyed . | . . . . Combat | -11 -10 -9 -9 -------- Run | Yrd Mat Mat Sto Hostile Shots Fired 209 | . 38 123 48 Missed 51 | . 7 29 15 Damage Taken 2083 | . 569 1025 489 Core 523 | . 116 195 212 Absorbed by Shields . | . . . . Redirected to Shielding 28 | . . . 28 Core Remaining (%) 76 | 100 53 . . Volleys Fired 97 | 1 46 45 5 Largest 2 | 2 2 2 1 Hottest 95 | 70 95 80 50 Shots Fired 131 | 2 66 58 5 Gun 86 | 2 41 38 5 Cannon 12 | . 7 5 . Launcher 33 | . 18 15 . Special . | . . . . Kinetic 23 | 1 17 5 . Thermal 75 | 1 31 38 5 Explosive 33 | . 18 15 . Electromagnetic . | . . . . Robot Hit Streak 6 | 1 6 5 5 Robot Miss Streak 5 | . 5 4 1 Penetration Max . | . . . . Secondary Targets 1 | . 1 . . Max Gunslinging Chain 1 | . 1 . . Shots Hit Robots 71 | 1 37 29 4 Core Hits 56 | 1 33 20 2 Critical Kills . | . . . . Critical Parts Destroyed . | . . . . Critical Strikes 3 | . 1 2 . Burn 3 | . 1 2 . Melee Attacks . | . . . . Impact . | . . . . Slashing . | . . . . Piercing . | . . . . Sneak Attacks . | . . . . Combat Hostiles . | . . . . Follow-up Attacks . | . . . . Damage Inflicted 2252 | 12 1435 751 54 Guns 666 | 12 353 250 51 Cannons 139 | . 51 88 . Explosions 1364 | . 982 382 . Melee . | . . . . Ramming 83 | . 49 31 3 Kinetic 210 | . 122 88 . Thermal 595 | 12 282 250 51 Explosive 1364 | . 982 382 . Electromagnetic . | . . . . Impact . | . . . . Slashing . | . . . . Piercing . | . . . . Highest Corruption . | . . . . Average Corruption . | . . . . Corruption Purged . | . . . . Corruption Blocked . | . . . . Overload Shots . | . . . . Overflow Damage 86 | . 76 10 . Projectiles . | . . . . Explosions 75 | . 65 10 . Melee 11 | . 11 . . Knockbacks 1 | . . 1 . Impact . | . . . . Kinetic 1 | . . 1 . Secondary . | . . . . Self-Inflicted Damage 261 | . 153 107 1 Shots 10 | . 6 4 . Rammed 4 | . 2 1 1 Targets Rammed 4 | . 2 1 1 Kicked . | . . . . Crushed . | . . . . Highest Temperature 452 | 9 452 36 74 Average Temperature 87 | 6 115 12 36 Received Heat Transfer 609 | . 288 141 180 Effects 6 | . 6 . . Interference 3 | . 3 . . Short Circuit 2 | . 2 . . Damage (minor) 1 | . 1 . . Siege Activations . | . . . . Robots Corrupted . | . . . . Combat Hostiles . | . . . . Parts Fried . | . . . . Impact Corruptions 1 | . 1 . . Robots Melted . | . . . . Combat Hostiles . | . . . . Parts Melted 4 | . 1 3 . Heat Transferred 1887 | 37 814 888 148 Parts Sabotaged . | . . . . Parts Stolen . | . . . . Parts Stripped . | . . . . Power Chain Reactions . | . . . . Alert | -11 -10 -9 -9 ------- Run | Yrd Mat Mat Sto Peak Influence 367 | 5 367 213 81 Initial 46 | . 3 44 46 Average 128 | 2 167 79 52 Maximum Alert Level 1 | . 1 1 . Low Security (%) 63 | 100 43 95 100 Level 1 36 | . 56 4 . Level 2 . | . . . . Level 3 . | . . . . Level 4 . | . . . . Level 5 . | . . . . High Security . | . . . . Max Security . | . . . . Squads Dispatched 2 | . . 2 . Investigation 1 | . . 1 . Extermination . | . . . . Reinforcement 1 | . . 1 . Assault . | . . . . Garrison . | . . . . Intercept . | . . . . Searches Triggered . | . . . . Construction Impeded 1 | . . 1 . Haulers Reinforced . | . . . . Active Scanning Responses . | . . . . Cargo Convoy Interrupts . | . . . . Stealth | -11 -10 -9 -9 --------- Run | Yrd Mat Mat Sto Distress Signals . | . . . . Communications Jammed . | . . . . Distress Signals . | . . . . Times Spotted 35 | . 17 15 3 Peak Tracking Total 6 | . 4 6 2 Tactical Retreats . | . . . . Traps | -11 -10 -9 -9 ------- Run | Yrd Mat Mat Sto Traps Triggered . | . . . . Indirectly . | . . . . Trap Hack Attempts . | . . . . Triggered . | . . . . Disarmed . | . . . . Reprogrammed . | . . . . Reused . | . . . . Traps Extracted . | . . . . Installed . | . . . . Triggered . | . . . . Machines | -11 -10 -9 -9 ---------- Run | Yrd Mat Mat Sto Machines Disabled 4 | . 3 1 . Max in Single Turn 1 | . 1 1 . Machines Repaired . | . . . . Machines Dismantled . | . . . . Machines Sabotaged . | . . . . Overloaded Fab Kills . | . . . . Hacking | -11 -10 -9 -9 --------- Run | Yrd Mat Mat Sto Machines Accessed 9 | . 5 4 . Terminals 8 | . 4 4 . Fabricators . | . . . . Repair Stations . | . . . . Recycling Units 1 | . 1 . . Scanalyzers . | . . . . Garrison Access . | . . . . Total Hacks 34 | . 19 15 . Successful 16 | . 7 9 . Failed 18 | . 12 6 . Catastrophic 1 | . 1 . . Database Lockouts . | . . . . Manual 18 | . 11 7 . Terminals 29 | . 14 15 . Fabricators . | . . . . Repair Stations . | . . . . Recycling Units 5 | . 5 . . Scanalyzers . | . . . . Garrison Access . | . . . . Terminal Hacks 10 | . 2 8 . Record 5 | . . 5 . Branch Access Points 2 | . 1 1 . Unreport Threat 1 | . . 1 . Dispatch Records 1 | . 1 . . Patrol Status 1 | . . 1 . Fabricator Hacks . | . . . . Repair Station Hacks . | . . . . Recycling Unit Hacks 1 | . 1 . . Retrieve Components 1 | . 1 . . Scanalyzer . | . . . . Garrison Access Hacks . | . . . . Unauthorized Hacks 5 | . 4 1 . Terminals 5 | . 4 1 . Botnet 5 | . 4 1 . Fabricators . | . . . . Repair Stations . | . . . . Recycling Units . | . . . . Scanalyzers . | . . . . Garrison Access . | . . . . Data Cores Recovered . | . . . . Used . | . . . . Hacking Detections 7 | . 4 3 . Full Trace Events 1 | . . 1 . Feedback Events . | . . . . Feedback Blocked . | . . . . Robot Schematics Acquired . | . . . . Robots Built . | . . . . Authchips . | . . . . Time . | . . . . Total Robot Build Rating . | . . . . Part Schematics Acquired . | . . . . Parts Built . | . . . . Authchips . | . . . . Time . | . . . . Total Part Build Rating . | . . . . Parts Repaired . | . . . . Time . | . . . . Parts Recycled . | . . . . Recycled Matter . | . . . . Retrieved Matter . | . . . . Retrieved Components 1 | . 1 . . Parts Scanalyzed . | . . . . Part Schematics Acquired . | . . . . Parts Damaged . | . . . . Bothacking | -11 -10 -9 -9 ------------ Run | Yrd Mat Mat Sto Used RIF Installer . | . . . . Robots Hacked . | . . . . Non-combat . | . . . . Combat . | . . . . Robot Hacks Applied . | . . . . Relay Couplers Released . | . . . . Fabnet Peak Effective % . | . . . . Robots Rewired . | . . . . Allies Hacked . | . . . . Hacks Repelled . | . . . . Allies | -11 -10 -9 -9 -------- Run | Yrd Mat Mat Sto Total Allies . | . . . . Largest Group . | . . . . Highest-Rated Group . | . . . . Highest-Rated Ally . | . . . . Total Orders . | . . . . Ally Attacks . | . . . . Total Damage . | . . . . Kills . | . . . . Allies Corrupted . | . . . . Allies Melted . | . . . . Intel | -11 -10 -9 -9 ------- Run | Yrd Mat Mat Sto Robot Analysis Total . | . . . . Derelict Logs Recovered . | . . . . Drone Launches . | . . . . Drone Recoveries . | . . . . Exploration | -11 -10 -9 -9 ------------- Run | Yrd Mat Mat Sto Turns Passed 2069 | 117 1294 533 125 Spaces Moved 870 | 65 507 276 22 Core 36 | 2 31 . 3 Treads 436 | 63 325 29 19 Legs . | . . . . Wheels 398 | . 151 247 . Hover . | . . . . Flight . | . . . . Fastest Speed 50 | 50 160 135 320 Average Speed 200 | 156 220 149 489 Slowest Speed 1400 | 160 480 480 1400 Overloaded Moves . | . . . . Propulsion Burnouts . | . . . . Robots Hopped . | . . . . Cave-ins Triggered . | . . . . Exploration Rate (%) 27 | 5 69 28 9 Regions Visited 3 Branch Regions 1 Pre-discovered Areas . | . . . . Known Exits Taken 1 | . . 1 . Unknown Exits Taken 2 | 1 1 . . Scrap Searched . | . . . . Spaces Dug . | . . . . Terrain Destroyed 166 | . 75 91 . Melee . | . . . . Projectile . | . . . . AOE 166 | . 75 91 . Terrain Rammed . | . . . . Walls Destroyed . | . . . . Machines Disabled . | . . . . Actions | -11 -10 -9 -9 --------- Run | Yrd Mat Mat Sto Total 1063 | 75 615 339 34 Wait 34 | . 31 3 . Move 867 | 64 506 275 22 Hop . | . . . . Pick Up 20 | 3 10 7 . Fast Attach 12 | 6 6 . . Attach 12 | 1 2 5 4 Detach 4 | . 3 . 1 Swap 5 | . 2 3 . Drop 8 | . 7 . 1 Fire 97 | 1 46 45 5 Melee . | . . . . Ram 4 | . 2 1 1 Kick . | . . . . Crush . | . . . . Escape Stasis . | . . . . Rewire . | . . . . Trap . | . . . . Miscellaneous . | . . . . Route ------- -11/Scrapyard -10/Materials (discovered 3 exits: *Mat x2 / *Min) -9/Materials (discovered 4 exits: [*Mat] / *Min / *Sto x2) -9/Storage History --------- Turn | Location | Event 31 | -11/Scrapyard | Discovered new exit (range 15) 118 | -11/Scrapyard | Entered Materials 316 | -10/Materials | Build established: Mutant 371 | -10/Materials | Discovered new exit (range 12) 443 | -10/Materials | Discovered new exit (range 12) 446 | -10/Materials | Identified exit to Mines 722 | -10/Materials | Discovered new exit (range 16) 1412 | -10/Materials | Entered another Materials area 1412 | -9/Materials | Evolved 2 slots: Propulsion x1, Utility x1 1596 | -9/Materials | Identified exit to Mines 1596 | -9/Materials | Identified exit to Storage 1715 | -9/Materials | Discovered new exit (range 12) 1934 | -9/Materials | Lost 5 parts (1p2n2w) 1945 | -9/Materials | Entered Storage 1991 | -9/Storage | Core integrity fell below 50% 2053 | -9/Storage | Lost 4 parts (1p2n1w) 2061 | -9/Storage | Core integrity fell below 20% 2070 | -9/Storage | Destroyed by Y-45 Defender with Heavy Assault Rifle Last Messages --------------- K-01 Serf collects debris. U-05 Engineer lays Concrete. Acquired 11 matter. R-06 Scavenger collects Flight Unit. R-06 Scavenger collects Lgt. Assault Rifle. LOCATION=STORAGE GOAL=ESCAPE Identified Imp. Flight Unit. Dropped Faulty Imp. Flight Unit. K-01 Serf collects debris. Lgt. Treads destroyed. Critical hit (Burn: +37). Y-45 Defender destroyed. Med. Laser destroyed. Ion Engine destroyed. Lgt. Treads destroyed. R-06 Scavenger collects Lgt. Treads. R-06 Scavenger collects Lgt. Armor Plating. R-06 Scavenger collects Heat Sink. Slammed into R-06 Scavenger. Map ----- +----------------------------------------------------+ | | | | | | | | | | | | | | | ????????????????????????????????????????????????? | | ????????????????????????????????????????????????? | | ????????????????????????????????????????????????? | | ????????????????????????????????????????????????? | | ??????????????????????????????##????????????????? | | ??????????????????????????????# #????###????????? | | ??????????????????????????????# """? #????????? | | ??????????????????????????????# """" ?????????? | | ??????????????????????????????# """" #####????? | | ??????????????????????????????? """" ?# #????? | | ??????????????????????????????? ?# = #????? | | ???????????????????????????????? ??# #????? | | ???????????????????????????????? ? # #????? | | ????????????????????????????????? ! # #????? | | ????????????????????????????????? ??# #????? | | ???????????###+#########+#########+##### #????? | | ?????????? % Y #????? | | ?????????? m #????? | | ?????????? @ #????? | | ??????????????### ######;###################????? | | ?????????????????????? ???????????????????????? | | ????????????????????# ????????????????????????? | | ????????????????????# ????????????????????????? | | ????????????????????# ?????????????????????????? | | ????????????????????# "?????????????????????????? | | ????????????????????# ??????????????????????????? | | ????????????????????#???????????????????????????? | | ????????????????????????????????????????????????? | | ????????????????????????????????????????????????? | | ????????????????????????????????????????????????? | | ????????????????????????????????????????????????? | | ????????????????????????????????????????????????? | | ????????????????????????????????????????????????? | | ????????????????????????????????????????????????? | | ????????????????????????????????????????????????? | | ????????????????????????????????????????????????? | | ????????????????????????????????????????????????? | | ????????????????????????????????????????????????? | | ????????????????????????????????????????????????? | | ????????????????????????????????????????????????? | | ????????????????????????????????????????????????? | | ????????????????????????????????????????????????? | | ????????????????????????????????????????????????? | +----------------------------------------------------+ Best States ------------- Heat Dissipation 28 Energy Generation 14 Energy Capacity 250 Matter Stores 300 Matter Capacity 300 Sight Range 16 Robot Scan Range 14 Terrain Scan Density 10 Utility Shielding 33 Evasion (%) 40 Recoil Reduction 3 Item Schematics ----------------- None Robot Schematics ------------------ None Fabricated ------------ Nothing Alien Tech Used ----------------- None Achievements -------------- None Challenges ------------ None Game ------ Seed SchematicAssembledFlakker Manual? 0 Play Time 00:13:24 Cumulative 26.5 hours Start 2025.03.30 @ 18:02:13 End 2025.03.30 @ 18:14:46 Sessions 1 Manual Loads 0 Difficulty Rogue Special Mode None Game No. 72 Rogue 72 Adventurer 0 Explorer 0 Win Type - Total 0 Types 0/0/0/0/0/0/0/0/0 Lore% 14 Gallery% 23 Achievement% 25 Wizard Run 0 Options --------- Layout 1 ASCII 0 Keyboard 0 Movement Mouse Keybinds 0 Fullscreen 1 Font 36/Smallcaps Map View 50x40 Zoom Use 0% Tactical HUD 0 Map Filters NONE Filters NONE Steam 1 RUN: cdbfd8fe-8e3b-4f95-b347-a192e69fc63a